[Event "Titled Tuesday Blitz March 29 Early 2022"]
[White "Perez Ponsa, Federico"]
[Black "Tsvetkov, Andrey"]
[WhiteFideId "117927"]
[BlackFideId "34139360"]
[WhiteElo "2672"]
[BlackElo "2280"]
[Result "1-0"]
[Round "04"]
[TimeControl "180+1"]
[Date "2022.03.29"]
[WhiteClock "0:01:04"]
[BlackClock "0:00:19"]

1. d4 {[%clk 0:02:47]}  d5 {[%clk 0:02:58]} 2. c4 {[%clk 0:02:47]}  e6 {[%clk 0:02:58]} 3. Nc3 {[%clk 0:02:46]}  c6 {[%clk 0:02:58]} 4. e4 {[%clk 0:02:46]}  dxe4 {[%clk 0:02:59]} 5. Nxe4 {[%clk 0:02:47]}  Bb4+ {[%clk 0:03:00]} 6. Bd2 {[%clk 0:02:48]}  Qxd4 {[%clk 0:03:00]} 7. Bxb4 {[%clk 0:02:48]}  Qxe4+ {[%clk 0:03:01]} 8. Be2 {[%clk 0:02:48]}  Na6 {[%clk 0:03:01]} 9. Bd6 {[%clk 0:02:48]}  Qxg2 {[%clk 0:02:40]} 10. Qd2 {[%clk 0:02:42]}  Bd7 {[%clk 0:02:22]} 11. O-O-O {[%clk 0:02:22]}  Nf6 {[%clk 0:02:20]} 12. Bf3 {[%clk 0:02:17]}  Qg6 {[%clk 0:02:12]} 13. Ne2 {[%clk 0:02:17]}  Ne4 {[%clk 0:02:03]} 14. Bxe4 {[%clk 0:02:06]}  Qxe4 {[%clk 0:02:04]} 15. Qg5 {[%clk 0:02:06]}  f6 {[%clk 0:01:52]} 16. Qxg7 {[%clk 0:02:06]}  O-O-O {[%clk 0:01:53]} 17. Nc3 {[%clk 0:02:03]}  Qxc4 {[%clk 0:01:53]} 18. Qxf6 {[%clk 0:02:02]}  Nb4 {[%clk 0:01:45]} 19. Rd4 {[%clk 0:01:49]}  Nxa2+ {[%clk 0:00:31]} 20. Kc2 {[%clk 0:01:48]}  Qa6 {[%clk 0:00:26]} 21. Ra4 {[%clk 0:01:26]}  Nxc3 {[%clk 0:00:25]} 22. Rxa6 {[%clk 0:01:21]}  Ne4 {[%clk 0:00:26]} 23. Rxa7 {[%clk 0:01:11]}  Nxd6 {[%clk 0:00:26]} 24. Qe5 {[%clk 0:01:09]}  Kc7 {[%clk 0:00:19]} 25. Qa5+ {[%clk 0:01:04]} 1-0


[Site "https://www.chess.com"]

[Event "Titled Tuesday Blitz March 29 Early 2022"]
[White "Posthuma, Joshua"]
[Black "Reprintsev, Alexander"]
[WhiteFideId "2096889"]
[BlackFideId "14100541"]
[WhiteElo "2716"]
[BlackElo "2540"]
[Result "1-0"]
[Round "04"]
[TimeControl "180+1"]
[Date "2022.03.30"]
[WhiteClock "0:00:15"]
[BlackClock "0:00:20"]

1. c4 {[%clk 0:03:00]}  e5 {[%clk 0:02:51]} 2. Nc3 {[%clk 0:03:00]}  Nc6 {[%clk 0:02:47]} 3. g3 {[%clk 0:02:57]}  Bc5 {[%clk 0:02:42]} 4. Bg2 {[%clk 0:02:57]}  Nf6 {[%clk 0:02:42]} 5. e3 {[%clk 0:02:55]}  d5 {[%clk 0:02:41]} 6. cxd5 {[%clk 0:02:38]}  Nb4 {[%clk 0:02:41]} 7. d4 {[%clk 0:02:38]}  exd4 {[%clk 0:02:41]} 8. exd4 {[%clk 0:02:39]}  Be7 {[%clk 0:02:42]} 9. Nge2 {[%clk 0:02:34]}  Nbxd5 {[%clk 0:02:33]} 10. O-O {[%clk 0:02:33]}  c6 {[%clk 0:02:33]} 11. Nf4 {[%clk 0:02:28]}  Nxc3 {[%clk 0:02:29]} 12. bxc3 {[%clk 0:02:28]}  O-O {[%clk 0:02:30]} 13. Re1 {[%clk 0:02:17]}  Bd6 {[%clk 0:02:25]} 14. c4 {[%clk 0:02:05]}  Bb4 {[%clk 0:02:22]} 15. Bd2 {[%clk 0:02:04]}  Bxd2 {[%clk 0:02:22]} 16. Qxd2 {[%clk 0:02:05]}  Bf5 {[%clk 0:02:19]} 17. d5 {[%clk 0:02:00]}  Rc8 {[%clk 0:02:10]} 18. Qb4 {[%clk 0:01:47]}  Qb6 {[%clk 0:02:00]} 19. Qxb6 {[%clk 0:01:41]}  axb6 {[%clk 0:02:00]} 20. Re7 {[%clk 0:01:41]}  Bd7 {[%clk 0:01:52]} 21. Nh5 {[%clk 0:01:31]}  Rfd8 {[%clk 0:01:48]} 22. Nxf6+ {[%clk 0:01:27]}  gxf6 {[%clk 0:01:48]} 23. Rb1 {[%clk 0:01:12]}  b5 {[%clk 0:01:48]} 24. Rxd7 {[%clk 0:01:12]}  Rxd7 {[%clk 0:01:47]} 25. Bh3 {[%clk 0:01:12]}  Rcc7 {[%clk 0:01:38]} 26. Bxd7 {[%clk 0:01:11]}  Rxd7 {[%clk 0:01:38]} 27. dxc6 {[%clk 0:01:11]}  bxc6 {[%clk 0:01:38]} 28. cxb5 {[%clk 0:01:11]}  cxb5 {[%clk 0:01:37]} 29. Rxb5 {[%clk 0:01:12]}  Ra7 {[%clk 0:01:36]} 30. Rb2 {[%clk 0:01:10]}  Ra3 {[%clk 0:01:35]} 31. Kf1 {[%clk 0:01:08]}  f5 {[%clk 0:01:34]} 32. Ke2 {[%clk 0:01:09]}  Kg7 {[%clk 0:01:34]} 33. Kd2 {[%clk 0:01:09]}  Kf6 {[%clk 0:01:32]} 34. Kc2 {[%clk 0:01:09]}  Kg5 {[%clk 0:01:25]} 35. Kb1 {[%clk 0:01:00]}  Rf3 {[%clk 0:01:22]} 36. a4 {[%clk 0:00:59]}  f4 {[%clk 0:01:08]} 37. a5 {[%clk 0:00:58]}  fxg3 {[%clk 0:01:09]} 38. hxg3 {[%clk 0:00:54]}  Rf6 {[%clk 0:01:09]} 39. Ra2 {[%clk 0:00:52]}  Ra6 {[%clk 0:01:09]} 40. Ra4 {[%clk 0:00:52]}  Kf5 {[%clk 0:01:07]} 41. Kc2 {[%clk 0:00:52]}  Ke5 {[%clk 0:01:08]} 42. Kc3 {[%clk 0:00:41]}  Kd5 {[%clk 0:01:08]} 43. Rh4 {[%clk 0:00:42]}  f5 {[%clk 0:01:06]} 44. Kb4 {[%clk 0:00:39]}  Ra7 {[%clk 0:01:06]} 45. Rh5 {[%clk 0:00:28]}  Rb7+ {[%clk 0:01:05]} 46. Ka4 {[%clk 0:00:28]}  Rf7 {[%clk 0:01:01]} 47. Kb5 {[%clk 0:00:27]}  Rb7+ {[%clk 0:01:00]} 48. Ka6 {[%clk 0:00:27]}  Rf7 {[%clk 0:01:00]} 49. Kb6 {[%clk 0:00:28]}  Rf6+ {[%clk 0:00:55]} 50. Kb5 {[%clk 0:00:28]}  Rf8 {[%clk 0:00:52]} 51. Rxh7 {[%clk 0:00:23]}  Rb8+ {[%clk 0:00:52]} 52. Ka4 {[%clk 0:00:22]}  Rb2 {[%clk 0:00:51]} 53. f4 {[%clk 0:00:17]}  Rb1 {[%clk 0:00:39]} 54. a6 {[%clk 0:00:16]}  Kc5 {[%clk 0:00:27]} 55. Rc7+ {[%clk 0:00:15]}  Kd6 {[%clk 0:00:27]} 56. Rc3 {[%clk 0:00:14]}  Ra1+ {[%clk 0:00:20]} 57. Ra3 {[%clk 0:00:14]}  Rb1 {[%clk 0:00:20]} 58. a7 {[%clk 0:00:14]}  Kc5 {[%clk 0:00:20]} 59. a8=Q {[%clk 0:00:13]}  Rb4+ {[%clk 0:00:19]} 60. Ka5 {[%clk 0:00:13]}  Rb5+ {[%clk 0:00:20]} 61. Ka6 {[%clk 0:00:14]}  Rb6+ {[%clk 0:00:20]} 62. Ka7 {[%clk 0:00:15]} 1-0


[Site "https://www.chess.com"]

[Event "Titled Tuesday Blitz March 29 Early 2022"]
[White "Postny, Evgeny"]
[Black "Hakobyan, Aram"]
[WhiteFideId "2804344"]
[BlackFideId "13306677"]
[WhiteElo "2483"]
[BlackElo "2557"]
[Result "0-1"]
[Round "04"]
[TimeControl "180+1"]
[Date "2022.03.29"]
[WhiteClock "0:00:03"]
[BlackClock "0:00:50"]

1. d4 {[%clk 0:03:00]}  Nf6 {[%clk 0:03:00]} 2. Nf3 {[%clk 0:03:01]}  e6 {[%clk 0:03:00]} 3. Bg5 {[%clk 0:03:01]}  h6 {[%clk 0:03:00]} 4. Bxf6 {[%clk 0:03:01]}  Qxf6 {[%clk 0:03:00]} 5. e4 {[%clk 0:03:01]}  d6 {[%clk 0:03:01]} 6. c3 {[%clk 0:03:00]}  g6 {[%clk 0:02:59]} 7. Bd3 {[%clk 0:02:58]}  Bg7 {[%clk 0:02:59]} 8. Nbd2 {[%clk 0:02:59]}  Qe7 {[%clk 0:02:59]} 9. O-O {[%clk 0:02:59]}  e5 {[%clk 0:02:58]} 10. Re1 {[%clk 0:02:58]}  Nc6 {[%clk 0:02:54]} 11. Bb5 {[%clk 0:02:54]}  Bd7 {[%clk 0:02:52]} 12. d5 {[%clk 0:02:53]}  Nb8 {[%clk 0:02:51]} 13. Bxd7+ {[%clk 0:02:54]}  Nxd7 {[%clk 0:02:51]} 14. c4 {[%clk 0:02:51]}  O-O {[%clk 0:02:45]} 15. b4 {[%clk 0:02:50]}  a5 {[%clk 0:02:41]} 16. a3 {[%clk 0:02:49]}  f5 {[%clk 0:02:41]} 17. Qc2 {[%clk 0:02:42]}  b6 {[%clk 0:02:31]} 18. h3 {[%clk 0:02:41]}  h5 {[%clk 0:02:31]} 19. Nb3 {[%clk 0:02:09]}  Rf7 {[%clk 0:01:40]} 20. bxa5 {[%clk 0:01:58]}  bxa5 {[%clk 0:01:41]} 21. a4 {[%clk 0:01:51]}  f4 {[%clk 0:01:30]} 22. c5 {[%clk 0:01:44]}  g5 {[%clk 0:01:31]} 23. Nh2 {[%clk 0:01:31]}  Nf6 {[%clk 0:01:28]} 24. Qe2 {[%clk 0:01:20]}  Bh6 {[%clk 0:01:25]} 25. cxd6 {[%clk 0:01:10]}  cxd6 {[%clk 0:01:25]} 26. f3 {[%clk 0:00:53]}  Kh8 {[%clk 0:01:21]} 27. Nd2 {[%clk 0:00:48]}  Rg8 {[%clk 0:01:21]} 28. Ra3 {[%clk 0:00:48]}  Rfg7 {[%clk 0:01:16]} 29. Kf1 {[%clk 0:00:43]}  g4 {[%clk 0:01:13]} 30. fxg4 {[%clk 0:00:42]}  hxg4 {[%clk 0:01:14]} 31. hxg4 {[%clk 0:00:41]}  Nxg4 {[%clk 0:01:14]} 32. Nxg4 {[%clk 0:00:39]}  Rxg4 {[%clk 0:01:15]} 33. Rh3 {[%clk 0:00:38]}  Rh4 {[%clk 0:01:10]} 34. Qf3 {[%clk 0:00:28]}  Rg3 {[%clk 0:00:54]} 35. Rxg3 {[%clk 0:00:20]}  fxg3 {[%clk 0:00:55]} 36. Ke2 {[%clk 0:00:20]}  Qg5 {[%clk 0:00:55]} 37. Qd3 {[%clk 0:00:08]}  Rh2 {[%clk 0:00:53]} 38. Kd1 {[%clk 0:00:05]}  Rxg2 {[%clk 0:00:52]} 39. Re2 {[%clk 0:00:03]}  Rxe2 {[%clk 0:00:50]} 40. Qxe2 {[%clk 0:00:03]}  Qxd2+ {[%clk 0:00:50]} 0-1


[Site "https://www.chess.com"]

[Event "Titled Tuesday Blitz March 29 Early 2022"]
[White "Quirke, Jeffrey"]
[Black "Legenia, Artem"]
[WhiteFideId "2013029"]
[BlackFideId "14136945"]
[WhiteElo "2167"]
[BlackElo "1936"]
[Result "1-0"]
[Round "04"]
[TimeControl "180+1"]
[Date "2022.03.30"]
[WhiteClock "0:00:34"]
[BlackClock "0:01:43"]

1. c4 {[%clk 0:03:00]}  c5 {[%clk 0:02:58]} 2. Nf3 {[%clk 0:03:00]}  b6 {[%clk 0:02:58]} 3. Nc3 {[%clk 0:02:58]}  Bb7 {[%clk 0:02:59]} 4. e3 {[%clk 0:02:58]}  Nf6 {[%clk 0:02:57]} 5. d4 {[%clk 0:02:58]}  cxd4 {[%clk 0:02:57]} 6. exd4 {[%clk 0:02:58]}  e6 {[%clk 0:02:58]} 7. a3 {[%clk 0:02:46]}  d6 {[%clk 0:02:52]} 8. Be2 {[%clk 0:02:42]}  Be7 {[%clk 0:02:52]} 9. O-O {[%clk 0:02:42]}  O-O {[%clk 0:02:52]} 10. Bg5 {[%clk 0:02:40]}  Nbd7 {[%clk 0:02:52]} 11. Rc1 {[%clk 0:02:29]}  h6 {[%clk 0:02:51]} 12. Bh4 {[%clk 0:02:29]}  Ne4 {[%clk 0:02:52]} 13. Bxe7 {[%clk 0:02:28]}  Qxe7 {[%clk 0:02:50]} 14. d5 {[%clk 0:02:18]}  Nxc3 {[%clk 0:02:46]} 15. Rxc3 {[%clk 0:02:17]}  e5 {[%clk 0:02:47]} 16. Nd2 {[%clk 0:02:05]}  Rac8 {[%clk 0:02:41]} 17. Qc2 {[%clk 0:01:53]}  f5 {[%clk 0:02:40]} 18. f4 {[%clk 0:01:46]}  e4 {[%clk 0:02:38]} 19. Nb3 {[%clk 0:01:40]}  g5 {[%clk 0:02:30]} 20. Nd4 {[%clk 0:01:39]}  gxf4 {[%clk 0:02:24]} 21. Ne6 {[%clk 0:01:31]}  Rf6 {[%clk 0:02:19]} 22. Nxf4 {[%clk 0:01:29]}  Ne5 {[%clk 0:02:19]} 23. Rg3+ {[%clk 0:01:09]}  Kh7 {[%clk 0:02:18]} 24. Nh5 {[%clk 0:01:01]}  Rf7 {[%clk 0:02:17]} 25. Rxf5 {[%clk 0:00:46]}  Ng6 {[%clk 0:01:43]} 26. Rxf7+ {[%clk 0:00:40]}  Qxf7 {[%clk 0:01:43]} 27. Qxe4 {[%clk 0:00:37]}  Re8 {[%clk 0:01:43]} 28. Qxe8 {[%clk 0:00:34]} 1-0


[Site "https://www.chess.com"]

[Event "Titled Tuesday Blitz March 29 Early 2022"]
[White "Rabineau, Clement"]
[Black "Szpar, Milosz"]
[WhiteFideId "628891"]
[BlackFideId "1184989"]
[WhiteElo "2237"]
[BlackElo "2447"]
[Result "0-1"]
[Round "04"]
[TimeControl "180+1"]
[Date "2022.03.30"]
[WhiteClock "0:00:03"]
[BlackClock "0:00:57"]

1. e4 {[%clk 0:01:40]}  c5 {[%clk 0:02:56]} 2. c3 {[%clk 0:01:39]}  Nf6 {[%clk 0:02:53]} 3. e5 {[%clk 0:01:39]}  Nd5 {[%clk 0:02:53]} 4. Bc4 {[%clk 0:01:37]}  Nb6 {[%clk 0:02:49]} 5. Bb3 {[%clk 0:01:35]}  Nc6 {[%clk 0:02:49]} 6. Nf3 {[%clk 0:01:32]}  d6 {[%clk 0:02:47]} 7. exd6 {[%clk 0:01:29]}  c4 {[%clk 0:02:48]} 8. Bc2 {[%clk 0:01:29]}  Qxd6 {[%clk 0:02:47]} 9. O-O {[%clk 0:01:27]}  Bg4 {[%clk 0:02:46]} 10. b3 {[%clk 0:01:21]}  Qd5 {[%clk 0:01:39]} 11. Na3 {[%clk 0:01:07]}  Bxf3 {[%clk 0:01:38]} 12. Qxf3 {[%clk 0:01:06]}  Qxf3 {[%clk 0:01:38]} 13. gxf3 {[%clk 0:01:07]}  cxb3 {[%clk 0:01:37]} 14. axb3 {[%clk 0:01:07]}  e6 {[%clk 0:01:34]} 15. d4 {[%clk 0:00:29]}  Bd6 {[%clk 0:01:33]} 16. Nb5 {[%clk 0:00:27]}  Bb8 {[%clk 0:01:33]} 17. Ba3 {[%clk 0:00:20]}  Kd7 {[%clk 0:01:32]} 18. Bc5 {[%clk 0:00:20]}  Nd5 {[%clk 0:01:25]} 19. Be4 {[%clk 0:00:16]}  a6 {[%clk 0:01:22]} 20. Bxd5 {[%clk 0:00:13]}  exd5 {[%clk 0:01:22]} 21. Na3 {[%clk 0:00:12]}  Bc7 {[%clk 0:01:20]} 22. Nc2 {[%clk 0:00:11]}  Nd8 {[%clk 0:01:16]} 23. Ne3 {[%clk 0:00:04]}  Kc6 {[%clk 0:01:16]} 24. c4 {[%clk 0:00:03]}  dxc4 {[%clk 0:01:16]} 25. bxc4 {[%clk 0:00:03]}  Ne6 {[%clk 0:01:16]} 26. d5+ {[%clk 0:00:01]}  Kxc5 {[%clk 0:01:16]} 27. dxe6 {[%clk 0:00:02]}  fxe6 {[%clk 0:01:16]} 28. Rab1 {[%clk 0:00:02]}  Kc6 {[%clk 0:01:15]} 29. Rfe1 {[%clk 0:00:02]}  Rad8 {[%clk 0:01:12]} 30. Kg2 {[%clk 0:00:02]}  Rhe8 {[%clk 0:01:12]} 31. Re2 {[%clk 0:00:02]}  Rd4 {[%clk 0:01:12]} 32. Reb2 {[%clk 0:00:03]}  b6 {[%clk 0:01:07]} 33. Rc2 {[%clk 0:00:04]}  h5 {[%clk 0:01:07]} 34. Rbc1 {[%clk 0:00:05]}  h4 {[%clk 0:01:07]} 35. h3 {[%clk 0:00:05]}  Rf8 {[%clk 0:01:06]} 36. Rd1 {[%clk 0:00:05]}  Rxd1 {[%clk 0:01:06]} 37. Nxd1 {[%clk 0:00:06]}  Rf6 {[%clk 0:01:07]} 38. Ne3 {[%clk 0:00:07]}  Rg6+ {[%clk 0:01:07]} 39. Ng4 {[%clk 0:00:07]}  a5 {[%clk 0:01:04]} 40. Kf1 {[%clk 0:00:07]}  Kc5 {[%clk 0:01:04]} 41. Ke2 {[%clk 0:00:06]}  Rg5 {[%clk 0:01:04]} 42. Ne3 {[%clk 0:00:06]}  Rg1 {[%clk 0:01:03]} 43. Rd2 {[%clk 0:00:07]}  a4 {[%clk 0:01:02]} 44. Rd7 {[%clk 0:00:08]}  Kc6 {[%clk 0:01:02]} 45. Rd3 {[%clk 0:00:06]}  Bd6 {[%clk 0:01:01]} 46. Nc2 {[%clk 0:00:05]}  Bc5 {[%clk 0:01:00]} 47. Na3 {[%clk 0:00:02]}  Ra1 {[%clk 0:01:00]} 48. Nb5 {[%clk 0:00:02]}  a3 {[%clk 0:01:00]} 49. Rd8 {[%clk 0:00:01]}  a2 {[%clk 0:01:00]} 50. Rc8+ {[%clk 0:00:02]}  Kd7 {[%clk 0:01:01]} 51. Rc7+ {[%clk 0:00:03]}  Kd8 {[%clk 0:01:01]} 52. Ra7 {[%clk 0:00:03]}  Bb4 {[%clk 0:00:56]} 53. Nd4 {[%clk 0:00:03]}  Bc3 {[%clk 0:00:56]} 54. Nc6+ {[%clk 0:00:03]}  Ke8 {[%clk 0:00:56]} 55. Ra8+ {[%clk 0:00:03]}  Kf7 {[%clk 0:00:57]} 56. Nd8+ {[%clk 0:00:03]}  Kf6 {[%clk 0:00:57]} 57. Ra7 {[%clk 0:00:03]}  Re1+ {[%clk 0:00:56]} 58. Kd3 {[%clk 0:00:03]}  a1=Q {[%clk 0:00:57]} 0-1


[Site "https://www.chess.com"]

[Event "Titled Tuesday Blitz March 29 Early 2022"]
[White "Ravi, Teja S."]
[Black "Zhigalko, Sergei"]
[WhiteFideId "5017220"]
[BlackFideId "13502956"]
[WhiteElo "2412"]
[BlackElo "2662"]
[Result "0-1"]
[Round "04"]
[TimeControl "180+1"]
[Date "2022.03.29"]
[WhiteClock "0:01:27"]
[BlackClock "0:01:29"]

1. d4 {[%clk 0:03:00]}  Nf6 {[%clk 0:03:00]} 2. c4 {[%clk 0:03:00]}  e6 {[%clk 0:02:58]} 3. Nc3 {[%clk 0:03:00]}  Bb4 {[%clk 0:02:58]} 4. e3 {[%clk 0:03:00]}  O-O {[%clk 0:02:57]} 5. Bd2 {[%clk 0:03:00]}  b6 {[%clk 0:02:54]} 6. Nf3 {[%clk 0:03:00]}  Bb7 {[%clk 0:02:54]} 7. Bd3 {[%clk 0:03:01]}  d5 {[%clk 0:02:54]} 8. O-O {[%clk 0:03:01]}  a6 {[%clk 0:02:54]} 9. Rc1 {[%clk 0:03:02]}  Bd6 {[%clk 0:02:53]} 10. cxd5 {[%clk 0:02:58]}  exd5 {[%clk 0:02:54]} 11. Ne5 {[%clk 0:02:58]}  c5 {[%clk 0:02:54]} 12. f4 {[%clk 0:02:57]}  Nc6 {[%clk 0:02:54]} 13. Be1 {[%clk 0:02:56]}  cxd4 {[%clk 0:02:47]} 14. Nxc6 {[%clk 0:02:56]}  Bxc6 {[%clk 0:02:48]} 15. Ne2 {[%clk 0:02:56]}  Bd7 {[%clk 0:02:36]} 16. Nxd4 {[%clk 0:02:56]}  Re8 {[%clk 0:02:33]} 17. Rc3 {[%clk 0:02:42]}  Bb4 {[%clk 0:02:25]} 18. Rb3 {[%clk 0:02:38]}  Bc5 {[%clk 0:02:26]} 19. Bd2 {[%clk 0:02:28]}  Ba4 {[%clk 0:02:23]} 20. Qf3 {[%clk 0:02:21]}  Bxd4 {[%clk 0:02:22]} 21. Rb4 {[%clk 0:02:12]}  Bc5 {[%clk 0:02:01]} 22. Rxa4 {[%clk 0:02:10]}  b5 {[%clk 0:02:02]} 23. Rb4 {[%clk 0:01:51]}  Bxb4 {[%clk 0:01:56]} 24. Bxb4 {[%clk 0:01:52]}  Qb6 {[%clk 0:01:55]} 25. Re1 {[%clk 0:01:48]}  Rad8 {[%clk 0:01:43]} 26. Bc3 {[%clk 0:01:44]}  d4 {[%clk 0:01:42]} 27. Bd2 {[%clk 0:01:27]}  dxe3 {[%clk 0:01:37]} 28. Bxe3 {[%clk 0:01:27]}  Rxd3 {[%clk 0:01:29]} 0-1


[Site "https://www.chess.com"]

[Event "Titled Tuesday Blitz March 29 Early 2022"]
[White "Riehle, Marco"]
[Black "Gaehwiler, Gabriel"]
[WhiteFideId "12904392"]
[BlackFideId "1314530"]
[WhiteElo "2536"]
[BlackElo "2705"]
[Result "1/2-1/2"]
[Round "04"]
[TimeControl "180+1"]
[Date "2022.03.30"]
[WhiteClock "0:00:59"]
[BlackClock "0:00:20"]

1. e4 {[%clk 0:03:00]}  e5 {[%clk 0:02:59]} 2. Nf3 {[%clk 0:03:00]}  Nf6 {[%clk 0:02:59]} 3. Nxe5 {[%clk 0:03:00]}  d6 {[%clk 0:02:57]} 4. Nf3 {[%clk 0:03:01]}  Nxe4 {[%clk 0:02:57]} 5. Nc3 {[%clk 0:03:02]}  Nf6 {[%clk 0:02:58]} 6. d4 {[%clk 0:03:02]}  d5 {[%clk 0:02:58]} 7. Bd3 {[%clk 0:03:01]}  c6 {[%clk 0:02:58]} 8. O-O {[%clk 0:03:01]}  Be7 {[%clk 0:02:59]} 9. Ne5 {[%clk 0:03:01]}  O-O {[%clk 0:02:59]} 10. Bg5 {[%clk 0:02:58]}  Nbd7 {[%clk 0:02:57]} 11. Re1 {[%clk 0:02:54]}  Nxe5 {[%clk 0:02:41]} 12. Rxe5 {[%clk 0:02:51]}  Be6 {[%clk 0:02:00]} 13. Qf3 {[%clk 0:02:49]}  h6 {[%clk 0:01:10]} 14. Bxh6 {[%clk 0:02:28]}  gxh6 {[%clk 0:01:01]} 15. Qf4 {[%clk 0:02:27]}  Kg7 {[%clk 0:00:33]} 16. Rg5+ {[%clk 0:02:26]}  hxg5 {[%clk 0:00:30]} 17. Qxg5+ {[%clk 0:02:27]}  Kh8 {[%clk 0:00:31]} 18. Qh6+ {[%clk 0:02:27]}  Kg8 {[%clk 0:00:31]} 19. Re1 {[%clk 0:02:26]}  Bd6 {[%clk 0:00:20]} 20. Qg5+ {[%clk 0:01:15]}  Kh8 {[%clk 0:00:19]} 21. Qh6+ {[%clk 0:01:15]}  Kg8 {[%clk 0:00:20]} 22. Qg5+ {[%clk 0:00:58]}  Kh8 {[%clk 0:00:20]} 23. Qh6+ {[%clk 0:00:59]}  Kg8 {[%clk 0:00:20]} 1/2-1/2


[Site "https://www.chess.com"]

[Event "Titled Tuesday Blitz March 29 Early 2022"]
[White "Salinas Herrera, Pablo"]
[Black "Le, Tuan Minh"]
[WhiteFideId "3407128"]
[BlackFideId "12401153"]
[WhiteElo "2541"]
[BlackElo "2450"]
[Result "1-0"]
[Round "04"]
[TimeControl "180+1"]
[Date "2022.03.29"]
[WhiteClock "0:00:07"]
[BlackClock "0:00:05"]

1. e4 {[%clk 0:03:00]}  d5 {[%clk 0:02:58]} 2. exd5 {[%clk 0:03:01]}  Qxd5 {[%clk 0:02:58]} 3. Nc3 {[%clk 0:03:01]}  Qa5 {[%clk 0:02:58]} 4. g3 {[%clk 0:02:52]}  Nf6 {[%clk 0:02:58]} 5. Bg2 {[%clk 0:02:52]}  c6 {[%clk 0:02:58]} 6. Nge2 {[%clk 0:02:52]}  Bf5 {[%clk 0:02:58]} 7. b4 {[%clk 0:02:51]}  Qc7 {[%clk 0:02:54]} 8. b5 {[%clk 0:02:51]}  e6 {[%clk 0:02:52]} 9. Rb1 {[%clk 0:02:48]}  Be7 {[%clk 0:02:45]} 10. O-O {[%clk 0:02:48]}  O-O {[%clk 0:02:45]} 11. d3 {[%clk 0:02:48]}  Nbd7 {[%clk 0:02:35]} 12. a4 {[%clk 0:02:46]}  Rac8 {[%clk 0:02:34]} 13. Bd2 {[%clk 0:02:43]}  Rfd8 {[%clk 0:02:31]} 14. Qc1 {[%clk 0:02:42]}  e5 {[%clk 0:02:19]} 15. Qb2 {[%clk 0:02:35]}  h6 {[%clk 0:02:14]} 16. Be3 {[%clk 0:02:20]}  c5 {[%clk 0:02:02]} 17. a5 {[%clk 0:02:13]}  b6 {[%clk 0:01:53]} 18. axb6 {[%clk 0:02:07]}  axb6 {[%clk 0:01:54]} 19. Ra1 {[%clk 0:02:07]}  c4 {[%clk 0:01:54]} 20. d4 {[%clk 0:02:06]}  Bg4 {[%clk 0:01:27]} 21. h3 {[%clk 0:01:29]}  Bh5 {[%clk 0:01:26]} 22. Ra6 {[%clk 0:01:12]}  exd4 {[%clk 0:01:00]} 23. Nxd4 {[%clk 0:01:10]}  Bc5 {[%clk 0:01:00]} 24. Na4 {[%clk 0:00:55]}  Re8 {[%clk 0:00:54]} 25. Bf4 {[%clk 0:00:26]}  Bd6 {[%clk 0:00:45]} 26. Bxd6 {[%clk 0:00:18]}  Qxd6 {[%clk 0:00:46]} 27. Nc6 {[%clk 0:00:18]}  c3 {[%clk 0:00:29]} 28. Qxc3 {[%clk 0:00:18]}  Be2 {[%clk 0:00:29]} 29. Rb1 {[%clk 0:00:17]}  Ne4 {[%clk 0:00:23]} 30. Qe1 {[%clk 0:00:15]}  Nec5 {[%clk 0:00:23]} 31. Nxc5 {[%clk 0:00:15]}  Qxc5 {[%clk 0:00:22]} 32. Qb4 {[%clk 0:00:13]}  Qxc2 {[%clk 0:00:18]} 33. Nd4 {[%clk 0:00:13]}  Qd3 {[%clk 0:00:11]} 34. Ra3 {[%clk 0:00:11]}  Qg6 {[%clk 0:00:11]} 35. Bc6 {[%clk 0:00:11]}  Rcd8 {[%clk 0:00:10]} 36. Nxe2 {[%clk 0:00:07]}  Rxe2 {[%clk 0:00:11]} 37. Rd1 {[%clk 0:00:07]}  Qf6 {[%clk 0:00:11]} 38. Qf4 {[%clk 0:00:07]}  Qe7 {[%clk 0:00:10]} 39. Rad3 {[%clk 0:00:07]}  Re1+ {[%clk 0:00:04]} 40. Rxe1 {[%clk 0:00:07]}  Qxe1+ {[%clk 0:00:05]} 41. Kg2 {[%clk 0:00:08]}  Qe7 {[%clk 0:00:02]} 42. Qc7 {[%clk 0:00:08]}  Qf6 {[%clk 0:00:02]} 43. Rxd7 {[%clk 0:00:08]}  Rf8 {[%clk 0:00:02]} 44. Qd6 {[%clk 0:00:08]}  Qg5 {[%clk 0:00:03]} 45. h4 {[%clk 0:00:08]}  Qf5 {[%clk 0:00:03]} 46. Rd8 {[%clk 0:00:08]}  Rxd8 {[%clk 0:00:04]} 47. Qxd8+ {[%clk 0:00:09]}  Kh7 {[%clk 0:00:05]} 48. Qd5 {[%clk 0:00:09]}  Qf6 {[%clk 0:00:05]} 49. Qe4+ {[%clk 0:00:09]}  g6 {[%clk 0:00:06]} 50. Qe3 {[%clk 0:00:10]}  h5 {[%clk 0:00:06]} 51. Qxb6 {[%clk 0:00:10]}  Qe5 {[%clk 0:00:06]} 52. Qe3 {[%clk 0:00:11]}  Qc7 {[%clk 0:00:06]} 53. Qf3 {[%clk 0:00:11]}  Kg7 {[%clk 0:00:06]} 54. Bd5 {[%clk 0:00:12]}  f6 {[%clk 0:00:06]} 55. Qe4 {[%clk 0:00:12]}  Qc5 {[%clk 0:00:06]} 56. Bc4 {[%clk 0:00:12]}  g5 {[%clk 0:00:07]} 57. Qd5 {[%clk 0:00:12]}  Qb6 {[%clk 0:00:06]} 58. Qg8+ {[%clk 0:00:12]}  Kh6 {[%clk 0:00:06]} 59. Qh8+ {[%clk 0:00:13]}  Kg6 {[%clk 0:00:07]} 60. Qe8+ {[%clk 0:00:13]}  Kh6 {[%clk 0:00:07]} 61. hxg5+ {[%clk 0:00:13]}  fxg5 {[%clk 0:00:08]} 62. Qh8+ {[%clk 0:00:12]}  Kg6 {[%clk 0:00:08]} 63. Qc8 {[%clk 0:00:13]}  Qd4 {[%clk 0:00:07]} 64. Qc6+ {[%clk 0:00:13]}  Kg7 {[%clk 0:00:08]} 65. b6 {[%clk 0:00:12]}  h4 {[%clk 0:00:08]} 66. Qc7+ {[%clk 0:00:11]}  Kh6 {[%clk 0:00:08]} 67. gxh4 {[%clk 0:00:11]}  gxh4 {[%clk 0:00:04]} 68. Qc6+ {[%clk 0:00:10]}  Kg7 {[%clk 0:00:04]} 69. Qc7+ {[%clk 0:00:10]}  Kh6 {[%clk 0:00:05]} 70. b7 {[%clk 0:00:09]}  Qg4+ {[%clk 0:00:05]} 71. Kh2 {[%clk 0:00:09]}  Qf3 {[%clk 0:00:05]} 72. Qd6+ {[%clk 0:00:09]}  Kg7 {[%clk 0:00:05]} 73. Qe5+ {[%clk 0:00:08]}  Kh6 {[%clk 0:00:05]} 74. Qe3+ {[%clk 0:00:07]} 1-0


[Site "https://www.chess.com"]